bitfinex/quotes_SOLUSD_20251130
["timestamp","ask_amount","ask_price","bid_price","bid_amount"]
[1764522901781,0.67,138.9,138.87,2.1763211]
[1764522902490,0.67,138.9,138.87,3.39932365]
[1764522902785,0.67,138.9,138.88,3.39932365]
[1764522903174,0.67,138.92,138.88,10.59977671]
[1764522906790,7.86839762,138.92,138.88,10.59977671]
[1764522907001,0.67,138.91,138.88,10.59977671]
[1764522907385,0.67,138.91,138.89,3.39932365]
[1764522909584,0.67,138.93,138.9,3.39932365]
[1764522909782,0.67,138.95,138.92,3.39932365]
[1764522909978,0.67,138.95,138.93,3.39932365]
[1764522910385,0.67,138.95,138.93,10.59675145]
[1764522910798,0.67,138.95,138.92,7.48252577]
[1764522911010,0.67,138.95,138.91,7.19887528]
[1764522911311,0.67,138.95,138.91,10.71819893]
[1764522911688,0.67,138.95,138.92,3.39932365]
[1764522912092,0.67,138.95,138.91,7.19887528]
[1764522912313,0.67,138.95,138.93,7.19786943]
[1764522914717,0.67,138.96,138.94,3.39932365]
[1764522916093,0.67,138.97,138.95,3.39932365]
[1764522916908,0.67,138.97,138.95,10.59614943]
[1764522917304,0.67,138.97,138.95,7.19682578]
[1764522918485,0.67,138.97,138.95,3.39932365]
[1764522919707,0.67,138.97,138.94,3.39932365]
[1764522920490,0.67,138.97,138.94,10.59626669]
[1764522921727,4.06932365,138.97,138.93,7.19767714]
[1764522921893,3.39932365,138.95,138.93,7.19767714]
[1764522922089,3.39932365,138.94,138.91,7.19890576]
[1764522922289,4.06932365,138.94,138.91,7.19890576]
[1764522922509,0.67,138.93,138.91,7.19890576]
[1764522923106,0.67,138.93,138.9,7.19942404]
[1764522926620,0.67,138.93,138.9,10.59874769]
[1764522927017,0.67,138.93,138.91,10.59821733]
[1764522931726,0.67,138.93,138.87,39.20379511]
[1764522931727,0.67,138.93,138.9,10.59863376]
[1764522932421,0.67,138.93,138.9,7.19931011]
[1764522932623,0.67,138.93,138.86,18.00327391]
[1764522932624,3.39932365,138.92,138.86,18.00327391]
[1764522932819,3.39932365,138.91,138.86,21.40259756]
[1764522933007,4.07932365,138.92,138.86,21.40259756]
[1764522933532,0.68,138.91,138.87,7.20097933]
[1764522933716,4.07932365,138.91,138.87,7.20097933]
[1764522933923,0.68,138.9,138.87,7.20097933]
[1764522935804,0.68,138.92,138.88,3.39932365]
[1764522937413,3.39932365,138.91,138.87,7.20097933]
[1764522938030,0.68,138.9,138.87,7.20097933]
[1764522943731,3.39932365,138.89,138.87,7.20097933]
[1764522944031,3.39932365,138.88,138.86,61.5]
[1764522944411,0.68,138.87,138.86,61.5]
[1764522944840,4.07932365,138.87,138.86,61.5]
[1764522946823,4.07932365,138.87,138.84,61.5]
[1764522947028,4.07932365,138.86,138.84,61.5]
[1764522947424,0.68,138.85,138.84,61.5]
[1764522950335,0.68,138.85,138.84,61.0]
[1764522951043,0.68,138.85,138.83,68.20296897]
[1764522953645,0.68,138.85,138.83,61.0]
[1764522953952,0.68,138.85,138.83,68.20291824]
[1764522955037,0.68,138.85,138.83,61.0]
[1764522955238,4.07932365,138.85,138.83,61.0]
[1764522955555,3.39932365,138.84,138.81,68.20386981]
[1764522955854,4.07932365,138.84,138.81,68.20386981]
[1764522956148,0.68,138.83,138.81,68.20386981]
[1764522958125,0.68,138.83,138.81,7.20386981]
[1764522958455,0.68,138.83,138.8,10.40440555]
[1764522958741,0.68,138.83,138.8,10.6037292]
[1764522959355,0.68,138.83,138.8,7.20440555]
[1764522959655,0.68,138.83,138.8,10.6037292]
[1764522960856,0.68,138.84,138.82,7.20357297]
[1764522961262,0.68,138.84,138.82,10.60289662]
[1764522963066,0.68,138.84,138.82,72.10289662]
[1764522963454,7.88172413,138.86,138.83,3.39932365]
[1764522964169,7.88172413,138.86,138.82,72.22289662]
[1764522964342,0.68,138.85,138.82,70.88056959]
[1764522964546,0.68,138.85,138.83,2.17699662]
[1764522964753,0.68,138.85,138.82,7.32357297]
[1764522964957,0.68,138.85,138.82,9.50056959]
[1764522965164,20.66073837,138.88,138.84,2.17699662]
[1764522965351,0.68,138.87,138.84,63.67699662]
[1764522965967,0.68,138.87,138.84,70.87912405]
[1764522968673,0.68,138.89,138.86,2.17699662]
[1764522969995,0.68,138.9,138.87,2.17699662]
[1764522970494,0.68,138.9,138.88,2.17699662]
[1764522970699,0.68,138.91,138.89,7.1999424]
[1764522973293,12.00994492,138.93,138.89,9.37693902]
[1764522973497,0.68,138.94,138.91,2.17699662]
[1764522973693,0.68,138.94,138.9,0.12]
[1764522974098,18.28692233,138.96,138.91,7.19890576]
[1764522974302,0.88,138.98,138.94,2.17699662]
[1764522974920,0.68,138.97,138.94,2.17699662]
[1764522975595,0.68,138.97,138.94,9.37399758]
[1764522976196,0.68,138.97,138.95,2.17699662]
[1764522976721,0.2,138.98,138.96,2.29699662]
[1764522976915,0.2,138.98,138.97,18.77018376]
[1764522977591,0.2,138.98,138.97,25.96598141]
[1764522978107,0.2,138.98,138.97,26.08598141]
[1764522978313,0.2,138.98,138.97,23.78898479]
[1764522978812,0.2,138.98,138.97,25.96598141]
[1764522979510,0.88,138.98,138.97,16.308864]
[1764522979687,0.2,138.98,138.97,16.308864]
[1764522980811,0.2,138.98,138.97,77.808864]
[1764522981309,0.2,138.98,138.97,85.00466165]
[1764522982108,0.2,138.98,138.95,7.19660745]
[1764522982109,3.05699662,138.98,138.95,7.19660745]
[1764522982514,0.68,138.97,138.95,7.19660745]
[1764522983602,0.2,138.98,138.96,2.17699662]
[1764522983804,0.92,138.98,138.96,2.17699662]
[1764522985211,0.2,138.98,138.97,9.65711741]
[1764522986913,0.2,138.98,138.97,18.58706233]
[1764522987993,0.2,138.98,138.97,96.39592633]
[1764522989007,0.2,139.01,139.0,16.308864]
[1764522989198,0.2,139.01,138.97,86.10517957]
[1764522989199,0.91,139.01,138.99,2.17699662]
[1764522989610,0.91,139.01,139.0,2.17699662]
[1764522992100,0.91,139.01,139.0,9.37124122]
[1764522993213,8.10376747,139.01,138.97,23.5046108]
[1764522993414,0.71,139.0,138.97,25.68160742]
[1764522995028,0.71,139.0,138.98,2.17699662]
[1764522997127,0.2,139.01,138.99,2.17699662]
[1764522997334,0.2,139.01,139.0,2.17699662]
[1764522997636,0.91,139.01,139.0,2.17699662]
[1764522998132,0.2,139.01,139.0,18.77018376]
[1764522998337,0.2,139.01,139.0,25.96442836]
[1764522999644,1e-08,139.01,139.0,96.39437328]
[1764522999844,0.2,139.03,139.0,98.5713699]
[1764523000047,0.2,139.04,139.0,98.5713699]
[1764523000048,0.2,139.04,139.03,27.58012868]
[1764523000223,0.2,139.04,139.03,99.4528209]
[1764523000541,0.2,139.04,139.03,99.5728209]
[1764523000751,0.2,139.04,139.03,99.4528209]
[1764523000952,0.2,139.04,139.03,23.50155622]
[1764523000953,0.91,139.04,139.03,23.50155622]
[1764523001939,0.91,139.04,139.0,10.3742446]
[1764523001940,3.08699662,139.04,139.0,10.3742446]
[1764523002151,0.71,139.03,139.0,10.3742446]
[1764523002330,0.71,139.03,139.01,2.17699662]
[1764523003416,0.71,139.03,139.02,7.19320961]
[1764523005355,0.91,139.04,139.02,9.37020623]
[1764523006029,0.71,139.03,139.01,9.37072368]
[1764523007245,0.2,139.04,139.02,2.17699662]
[1764523007425,0.91,139.04,139.02,63.67699662]
[1764523007740,0.91,139.04,139.02,66.85699662]
[1764523009354,0.2,139.04,139.02,74.04979274]
[1764523009559,0.91,139.04,139.02,74.04979274]
[1764523009938,0.71,139.03,139.02,71.87279612]
[1764523010650,0.2,139.04,139.02,74.04979274]
[1764523011842,0.91,139.04,139.02,71.87279612]
[1764523012029,0.91,139.04,139.02,74.04979274]
[1764523012223,0.2,139.04,139.02,74.04979274]
[1764523012428,0.2,139.04,139.03,2.46131976]
[1764523012624,0.2,139.04,139.03,63.96131976]
[1764523012838,0.2,139.04,139.03,61.78432314]
[1764523013028,0.2,139.04,139.03,63.96131976]
[1764523014461,0.91,139.04,139.03,68.69269222]
[1764523015029,0.2,139.04,139.03,68.69269222]
[1764523015230,0.91,139.04,139.03,68.69269222]
[1764523016328,0.2,139.04,139.03,68.69269222]
[1764523017030,0.2,139.04,139.03,18.5839569]
[1764523018335,0.2,139.04,139.03,18.4639569]
[1764523018852,0.92,139.04,139.03,9.65401198]
[1764523019052,0.2,139.04,139.03,9.65401198]
[1764523020654,0.92,139.04,139.03,7.19269222]
[1764523025762,0.92,139.04,139.03,9.36968884]
[1764523026263,0.2,139.04,139.03,80.80322612]
[1764523026567,0.2,139.04,139.03,82.01595968]
[1764523027259,0.2,139.05,139.04,9.09426806]
[1764523027460,0.2,139.06,139.05,12.48399824]
[1764523027766,0.2,139.06,139.05,13.323164]
[1764523027949,0.92,139.06,139.03,87.393692]
[1764523028149,0.92,139.06,139.05,23.50052167]
[1764523028364,0.92,139.06,139.05,26.89025185]
[1764523032675,0.92,139.06,139.05,19.69859418]
[1764523032857,0.92,139.06,139.05,23.50052167]
[1764523033056,0.92,139.06,139.05,26.89025185]
[1764523033973,0.92,139.06,139.05,19.69859418]
[1764523034161,0.92,139.06,139.05,16.308864]
[1764523034558,0.92,139.06,139.04,68.06973018]
[1764523034765,0.72,139.05,139.04,75.26189416]
[1764523034967,0.72,139.05,139.04,71.87216398]
[1764523035457,0.72,139.05,139.04,61.5]
[1764523050590,11.30138785,139.05,139.01,61.5]
[1764523050768,3.38973018,139.03,138.98,64.68]
[1764523050972,3.38973018,139.03,138.98,13.76499239]
[1764523051172,3.38973018,139.03,139.02,3.38973018]
[1764523051173,0.68,139.03,139.02,3.38973018]
[1764523051790,0.68,139.03,139.01,6.56973018]
[1764523052172,0.68,139.03,139.01,13.76338501]
[1764523053180,0.68,139.03,139.01,10.37365483]
[1764523053782,0.68,139.03,139.0,3.18]
[1764523053965,11.26246896,139.03,139.0,3.18]
[1764523054170,0.68,139.03,139.0,3.18]
[1764523054476,0.68,139.02,139.0,3.18]
[1764523055185,0.68,139.02,139.0,13.7639022]
[1764523056390,10.58156375,139.05,139.0,13.7639022]
[1764523056391,0.68,139.03,139.0,13.7639022]
[1764523060973,0.68,139.03,139.0,75.2639022]
[1764523062897,0.68,139.03,139.01,3.38973018]
[1764523064906,0.68,139.03,139.01,10.58308501]
[1764523066205,0.68,139.03,139.01,7.19335483]
[1764523066811,0.68,139.03,139.01,68.69335483]
[1764523068808,0.68,139.03,139.01,39.33635483]
[1764523069000,0.68,139.03,139.01,42.51635483]
[1764523070378,0.68,139.03,139.01,49.70970966]
[1764523071402,7.87165909,139.05,139.01,53.09943984]
[1764523071595,0.68,139.04,139.01,53.09943984]
[1764523073199,0.68,139.04,139.01,49.70970966]
[1764523073888,0.68,139.04,139.01,53.09943984]
[1764523076291,0.68,139.04,139.01,49.70970966]
[1764523076600,0.72,139.04,139.02,3.38973018]
[1764523077214,0.72,139.04,139.02,7.19308818]
[1764523078404,0.72,139.04,139.02,10.58281836]
[1764523078810,0.72,139.04,139.02,49.91917319]
[1764523081115,0.2,139.06,139.03,3.38973018]
[1764523081285,0.2,139.06,139.05,19.69859418]
[1764523081491,0.2,139.06,139.05,31.97286224]
[1764523081694,0.2,139.06,139.05,32.09286224]
[1764523082596,0.2,139.06,139.05,39.28451991]
[1764523084893,0.2,139.06,139.05,42.16460055]
[1764523085217,1e-08,139.06,139.05,81.50095538]
[1764523085408,0.2,139.08,139.06,9.09426806]
[1764523085601,0.2,139.08,139.07,15.66399824]
[1764523085916,0.2,139.08,139.07,15.78399824]
[1764523086109,0.2,139.08,139.07,18.66324963]
[1764523086416,0.2,139.08,139.07,17.44194017]
[1764523086622,0.2,139.08,139.07,24.63256359]
[1764523087617,1e-08,139.08,139.07,24.63256359]
[1764523088699,1e-08,139.08,139.07,19.16414287]
[1764523088907,0.72000001,139.08,139.07,68.18426297]
[1764523089307,0.72000001,139.08,139.07,68.46858611]
[1764523089707,0.72000001,139.08,139.07,68.18426297]
[1764523089920,0.72000001,139.08,139.07,66.30016539]
[1764523090219,0.72000001,139.08,139.07,68.46858611]
[1764523093519,0.72000001,139.08,139.04,5.048294]
[1764523093695,2.16842072,139.07,139.04,2.87987328]
[1764523093896,2.16842072,139.07,139.03,10.3725348]
[1764523094109,0.72,139.06,139.03,12.54095552]
[1764523094916,0.72,139.06,139.03,10.3725348]
[1764523095127,0.72,139.06,139.04,9.36034904]
[1764523096103,0.72,139.06,139.03,10.37251625]
[1764523096420,0.72,139.06,139.02,9.36146913]
[1764523096594,0.72,139.06,139.02,12.54146913]
[1764523099320,0.72,139.06,139.03,2.16842072]
[1764523102434,0.72,139.06,139.03,41.50477555]
[1764523103320,0.72,139.06,139.03,46.5290389]
[1764523103528,0.72,139.06,139.03,49.7090389]
[1764523106429,0.72,139.06,139.04,2.16842072]
[1764523107034,0.7,139.06,139.05,2.16842072]
[1764523107214,0.7,139.07,139.04,9.36051422]
[1764523107536,1e-08,139.08,139.05,0.26216157]
[1764523107716,1e-08,139.08,139.06,3.18]
[1764523108111,0.68000001,139.08,139.06,3.18]
[1764523108836,0.68000001,139.08,139.06,10.37102587]
[1764523109535,1e-08,139.08,139.06,10.37102587]
[1764523109740,1e-08,139.08,139.07,2.16842072]
[1764523110836,0.68000001,139.08,139.07,9.35904414]
[1764523113836,1e-08,139.08,139.07,9.35904414]
[1764523114639,1e-08,139.08,139.07,48.97972211]
[1764523116535,0.68000001,139.08,139.07,39.33635483]
[1764523117218,2.84842073,139.08,139.04,42.51635483]
[1764523117417,2.84842073,139.08,139.04,49.70851815]
[1764523117638,0.68,139.07,139.04,49.70851815]
[1764523118435,0.68,139.07,139.05,2.16842072]
[1764523120035,0.68,139.07,139.05,9.36007004]
[1764523121642,0.68,139.07,139.06,2.16842072]
[1764523121847,0.68000001,139.08,139.06,5.34842072]
[1764523122141,0.68000001,139.08,139.07,2.16842072]
[1764523123326,0.68000001,139.08,139.07,16.308864]
[1764523123534,0.68000001,139.08,139.07,25.66790814]
[1764523125849,0.68000001,139.08,139.07,65.28858611]
[1764523125850,1e-08,139.08,139.07,65.28858611]
[1764523127241,1e-08,139.08,139.07,34.8821762]
[1764523127545,1e-08,139.08,139.07,32.59375548]
[1764523127730,1e-08,139.08,139.07,37.9421762]
[1764523128244,1e-08,139.08,139.07,35.77375548]
[1764523128548,1e-08,139.08,139.07,37.9421762]
[1764523132147,1e-08,139.08,139.07,77.27853103]
[1764523138454,0.66000001,139.08,139.07,68.46858611]
[1764523138752,0.66000001,139.08,139.07,57.81363955]
[1764523139335,0.66000001,139.08,139.07,65.00426297]
[1764523139736,0.66000001,139.08,139.07,57.81363955]
[1764523139936,0.66000001,139.08,139.07,65.00426297]
[1764523140233,0.66000001,139.08,139.07,25.66790814]
[1764523142133,0.66000001,139.08,139.06,46.52739154]
[1764523143657,7.85018495,139.08,139.04,9.36044481]
[1764523144144,0.66,139.07,139.04,9.36044481]
[1764523145443,2.82842072,139.07,139.04,7.19202409]
[1764523145941,0.66,139.06,139.04,7.19202409]
[1764523146648,4.05178319,139.06,139.03,39.33635483]
[1764523146959,0.66,139.05,139.02,62.83797463]
[1764523147165,0.66,139.05,139.02,7.1927558]
[1764523147341,4.05178319,139.05,139.02,7.1927558]
[1764523147760,0.66,139.04,139.02,7.1927558]
[1764523150139,0.66,139.04,139.01,53.10166631]
[1764523150440,11.24401836,139.04,139.01,39.33635483]
[1764523150639,11.24401836,139.04,139.0,62.83927935]
[1764523150845,0.66,139.03,139.0,62.83927935]
[1764523151060,0.66,139.03,139.0,39.33635483]
[1764523151843,4.05178319,139.03,139.0,39.33635483]
[1764523152354,0.66,139.02,139.0,39.33635483]
[1764523154039,7.19181957,139.05,139.0,46.53057583]
[1764523154338,3.39178319,139.04,139.0,39.33635483]
[1764523154557,0.66,139.03,139.0,39.33635483]
[1764523155942,0.66,139.03,139.0,10.58585087]
[1764523156565,0.66,139.03,139.01,3.39178319]
[1764523156958,0.66,139.05,139.02,3.39178319]
[1764523157268,0.66,139.05,139.03,6.57178319]
[1764523157448,0.66,139.05,139.03,45.90813802]
[1764523158469,0.66,139.05,139.03,53.10077323]
[1764523160173,0.66,139.05,139.03,49.70899004]
[1764523162150,0.66,139.05,139.03,53.10077323]
[1764523164175,0.66,139.05,139.03,49.70899004]
[1764523165472,0.66,139.05,139.0,39.33635483]
[1764523165473,11.24358769,139.05,139.0,39.33635483]
[1764523165650,3.39178319,139.04,139.0,39.33635483]
[1764523165846,3.39178319,139.03,139.0,39.33635483]
[1764523166066,4.06178319,139.03,139.0,39.33635483]
[1764523166276,0.67,139.02,139.0,39.33635483]
[1764523166450,0.67,139.02,138.99,10.37437868]
[1764523168053,0.67,139.02,138.99,13.76616187]
[1764523173459,0.67,139.02,138.99,10.37437868]
[1764523173977,0.67,139.02,138.99,13.76616187]
[1764523176681,0.67,139.02,138.99,53.1025167]
[1764523178582,0.67,139.02,138.99,42.51635483]
[1764523179179,0.67,139.02,138.99,49.711045]
[1764523180186,0.67,139.02,138.99,53.10282819]
[1764523181988,0.71,139.02,138.99,53.10282819]
[1764523182364,0.71,139.02,139.0,3.39178319]
[1764523183687,0.71,139.02,138.99,53.10282819]
[1764523190091,10.58301769,139.06,139.01,3.39178319]
[1764523190271,7.1912345,139.06,139.01,6.57178319]
[1764523190480,0.71,139.05,139.01,6.69178319]
[1764523190684,0.71,139.05,139.01,6.57178319]
[1764523191084,0.71,139.05,139.02,7.19320961]
[1764523192973,0.71,139.05,139.02,10.5849928]
[1764523197693,0.71,139.05,139.02,7.19320961]
[1764523199184,3.39178319,139.04,138.99,39.33635483]
[1764523199496,3.39178319,139.04,138.99,45.90813802]
[1764523199699,0.71,139.03,138.99,45.90813802]
[1764523199988,0.71,139.03,139.0,10.58571856]
[1764523200195,0.71,139.04,139.02,3.39178319]
[1764523200405,4.10178319,139.04,139.02,39.33635483]
[1764523200898,0.71,139.03,139.02,39.33635483]
[1764523201305,4.10178319,139.03,139.02,39.33635483]
[1764523203472,4.10178319,139.03,138.99,7.19476221]
[1764523203689,0.71,139.02,138.99,46.53111704]
[1764523203891,4.10178319,139.02,138.99,46.53111704]
[1764523204088,0.71,139.01,138.99,46.53111704]
[1764523204291,0.71,139.01,138.98,10.37515245]
[1764523205607,0.71,139.01,138.98,13.76693564]
[1764523206296,0.71,139.01,138.98,10.37515245]
[1764523206694,0.71,139.01,138.98,13.76693564]
[1764523206925,7.9037779,139.01,138.98,7.19515245]
[1764523207097,3.39178319,139.0,138.97,39.33635483]
[1764523207394,4.10178319,139.0,138.96,49.71235977]
[1764523207582,0.71,138.99,138.96,49.71235977]
[1764523207990,0.71,138.99,138.95,3.39178319]
[1764523207991,4.10178319,138.99,138.95,7.19679565]
[1764523208206,3.39178319,138.98,138.95,7.19679565]
[1764523208376,2.88359556,138.98,138.95,7.19679565]
[1764523208576,0.71,138.97,138.95,7.19679565]
[1764523210082,0.71,138.97,138.94,2.17359556]
[1764523210278,7.90617688,138.97,138.93,42.61635483]
[1764523210479,0.71,138.96,138.93,44.78995039]
[1764523210715,0.71,138.96,138.93,0.1]
[1764523210883,2.88359556,138.96,138.93,0.1]
[1764523211211,9.37042895,138.95,138.93,0.1]
[1764523211502,7.90683339,138.95,138.93,0.1]
[1764523211705,0.71,138.94,138.93,0.1]
[1764523214808,7.19652822,138.96,138.93,0.1]
[1764523215028,7.19617688,138.97,138.95,2.17359556]
[1764523215215,7.90617688,138.97,138.95,2.17359556]
[1764523215414,7.90477175,138.99,138.96,2.17359556]
[1764523215728,0.71,138.99,138.97,2.17359556]
[1764523215915,10.37431033,139.0,138.97,2.17359556]
[1764523216122,0.71,138.98,138.97,2.17359556]
[1764523217727,7.31735137,139.01,138.97,9.36939321]
[1764523217907,0.71,139.0,138.99,2.17359556]
[1764523218950,0.71,139.0,138.98,9.36879237]
[1764523219313,0.71,139.01,138.99,2.17359556]
[1764523219645,0.71,139.01,138.98,9.36879237]
[1764523219934,0.71,139.01,138.99,2.17359556]
[1764523221054,0.71,139.01,138.98,9.36879237]
[1764523221648,0.71,139.01,138.99,2.17359556]
[1764523223951,0.71,139.01,138.98,9.36879237]
[1764523224348,0.71,139.01,138.98,48.7051472]
[1764523225542,0.71,139.01,138.98,46.53155164]
[1764523226653,10.07743381,139.01,138.98,39.33635483]
[1764523227021,0.68,139.0,138.98,39.33635483]
[1764523228139,7.87425503,139.0,138.98,39.33635483]
[1764523228531,0.68,138.99,138.98,39.33635483]
[1764523230232,0.68,138.99,138.96,48.70607688]
[1764523231340,0.68,138.99,138.97,2.17359556]
[1764523232548,0.68,138.99,138.97,9.36908072]
[1764523232743,11.54238793,139.02,138.97,27.35857485]
[1764523232744,9.36879237,139.02,138.97,27.35857485]
[1764523232950,0.68,139.01,138.98,2.17359556]
[1764523234027,0.68,139.01,138.99,7.19476221]
[1764523235839,0.68,139.01,138.98,7.19507603]
[1764523236230,0.68,139.01,138.98,46.53143086]
[1764523240160,0.68,139.01,138.98,48.70502642]
[1764523240335,0.68,139.01,138.98,46.53143086]
[1764523240536,0.68,139.01,138.98,48.70502642]
[1764523243758,0.68,139.01,138.98,46.53143086]
[1764523246935,0.68,139.04,139.0,2.17359556]
[1764523247137,0.68,139.03,139.0,39.33635483]
[1764523248355,0.68,139.03,139.0,46.53043511]
[1764523250768,28.02814198,139.03,138.98,2.17359556]
[1764523250945,38.40137386,139.03,138.98,2.17359556]
[1764523251141,0.68,139.02,138.98,2.17359556]
[1764523252160,0.68,139.02,138.97,2.17359556]
[1764523252548,7.87363426,139.02,138.97,9.36904741]
[1764523252856,10.04722982,139.02,138.97,9.36904741]
[1764523253163,0.68,139.01,138.97,10.37545185]
[1764523253361,2.85359556,139.01,138.97,10.37545185]
[1764523253551,0.68,139.01,138.97,10.37545185]
[1764523253863,0.68,139.0,138.97,10.37545185]
[1764523254363,0.68,139.0,138.97,12.54904741]
[1764523255764,0.68,139.0,138.97,9.36904741]
[1764523255963,0.68,139.0,138.97,12.54904741]
[1764523256553,0.18,139.0,138.97,13.16904741]
[1764523257051,0.18,139.0,138.97,74.66904741]
[1764523260970,0.18,139.0,138.97,72.49545185]
[1764523261556,0.18,139.0,138.97,68.69545185]
[1764523261753,0.18,139.0,138.97,71.87545185]
[1764523262167,2.17359556,138.98,138.95,77.808864]
[1764523262450,2.17359556,138.97,138.93,61.6]
[1764523262661,2.17359556,138.97,138.93,68.79750791]
[1764523262849,0.69,138.96,138.93,68.79750791]
[1764523266070,0.69,138.96,138.93,7.29750791]
[1764523272152,7.88646306,138.96,138.93,0.1]
[1764523272567,0.69,138.95,138.93,0.1]
[1764523272975,4.08649517,138.95,138.93,0.1]
[1764523273474,0.69,138.94,138.93,0.1]
[1764523273672,11.28384654,138.94,138.93,0.1]
[1764523273866,7.88735137,138.94,138.93,0.1]
[1764523276793,11.28384654,138.94,138.93,0.1]
[1764523279072,7.88735137,138.94,138.93,0.1]
[1764523279594,7.19735137,138.94,138.93,0.1]
[1764523281191,7.88735137,138.94,138.93,0.1]
[1764523284613,11.28384654,138.94,138.93,0.1]
[1764523285289,7.88735137,138.94,138.93,0.1]
[1764523285600,7.19735137,138.94,138.93,0.1]
[1764523286504,7.90735137,138.94,138.93,0.1]
[1764523289780,11.30384654,138.94,138.93,0.1]
[1764523290486,7.90735137,138.94,138.93,0.1]
[1764523294082,11.30384654,138.94,138.93,0.1]
[1764523294407,32.93404229,138.94,138.93,0.1]
[1764523298989,86.91417759,138.94,138.89,0.1]
[1764523299302,3.39649517,138.9,138.89,0.1]
[1764523299489,6.57649517,138.9,138.89,0.1]
[1764523299695,7.28649517,138.9,138.89,0.1]
[1764523300420,14.48591921,138.9,138.89,0.1]
[1764523301708,17.37077731,138.9,138.89,0.1]
[1764523320233,29.86154054,138.9,138.89,1e-08]
[1764523320721,26.18072223,138.9,138.89,1e-08]
[1764523320913,17.37077731,138.9,138.89,1e-08]
[1764523321818,16.66077731,138.9,138.89,1e-08]
[1764523322330,7.199083,138.91,138.89,0.62000001]
[1764523322629,2.88423405,138.93,138.89,0.62000001]
[1764523322926,7.19786943,138.93,138.89,4.01649518]
[1764523323410,7.19786943,138.93,138.9,0.62]
[1764523329614,11.2643646,138.93,138.9,0.62]
[1764523331617,10.5943646,138.93,138.9,0.62]
[1764523331820,7.86786943,138.93,138.9,0.62]
[1764523332427,7.19786943,138.93,138.9,0.62]
[1764523332723,7.86786943,138.93,138.9,0.62]
[1764523333626,7.19786943,138.93,138.9,0.62]
[1764523334814,3.85,138.94,138.9,0.62]
[1764523335020,3.18,138.94,138.9,71.49416744]
[1764523335445,3.18,138.94,138.91,0.62]
[1764523335906,10.37748181,138.94,138.91,0.62]
[1764523336102,3.18,138.94,138.91,0.62]
[1764523337334,10.37739097,138.94,138.91,0.62]
[1764523337509,3.18,138.94,138.91,2.79495324]
[1764523337711,28.82380997,138.96,138.92,2.17495324]
[1764523337911,7.1959996,138.97,138.93,2.17495324]
[1764523338233,7.1959996,138.97,138.93,2.79495324]
[1764523338421,7.1959996,138.97,138.94,0.62]
[1764523338809,13.22037576,138.98,138.94,0.62]
[1764523339010,0.67,138.97,138.94,0.62]
[1764523339930,12.55037576,138.98,138.94,0.62]
[1764523340134,13.22037576,138.98,138.94,0.62]
[1764523340636,11.04542252,138.98,138.94,0.62]
[1764523340939,7.86600077,138.97,138.94,0.62]
[1764523342940,7.19600077,138.97,138.94,0.62]
[1764523343143,7.19486692,138.99,138.96,2.17495324]
[1764523343363,7.19412226,139.01,138.97,2.17495324]
[1764523343653,3.83,139.04,138.99,2.17495324]
[1764523343855,6.00495324,139.04,138.99,2.17495324]
[1764523344022,0.65,139.03,139.0,0.62]
[1764523344434,7.19278375,139.03,139.0,0.62]
[1764523345139,7.84278375,139.03,139.0,0.62]
[1764523345341,0.65,139.02,138.98,16.928864]
[1764523345548,2.82495324,139.02,138.98,16.928864]
[1764523346147,2.88495324,139.01,138.98,16.928864]
[1764523346348,0.71,139.01,138.98,16.928864]
[1764523348748,7.19353116,139.02,138.99,0.62]
[1764523349427,7.90353116,139.02,138.99,0.62]
[1764523350960,0.71,139.02,138.99,7.81463361]
[1764523351949,0.71,139.02,138.98,85.62400914]
[1764523352248,0.71,139.02,138.99,0.62]
[1764523353146,0.71,139.02,138.99,7.81469738]